Workbook

Sheet Certification
A1: CHARTER SCHOOL UNAUDITED ACTUALS
A2: FINANCIAL REPORT -- ALTERNATIVE FORM
A3: July 1, 2021 to June 30, 2022
A5: CHARTER SCHOOL CERTIFICATION
J7: Charter School Name: | K7: Three Rivers Charter School
J8: CDS #: | K8: =TRIM(LEFT(SUBSTITUTE(MID(CELL("filename",A1),FIND("[",CELL("filename",A1))+1,255),".xl",REPT(" ",255)),255)) -> 23655650123737
J9: Charter Approving Entity: | K9: Fort Bragg Unified School District
J10: County: | K10: Mendocino
J11: Charter #: | K11: 1275
E13: NOTE: An Alternative Form submitted to the California Department of Education will not be considered a valid submission if the following information is missing:
E14: For information regarding this report, please contact:
E16: For County Fiscal Contact: | I16: For Approving Entity: | O16: For Charter School:
O17: Susan Lefkowitz
E18: Name | I18: Name | O18: Name
O19: Regional School Business Director
E20: Title | I20: Title | O20: Title
O21: 951-694-3050
E22: Telephone | I22: Telephone | O22: Telephone
O23: slefkowitz@csmci.com
E24: Email address | I24: Email address | O24: Email address
E26: To the entity that approved the charter school:
A27: ( | B27: X | C27: ) | E27: 2021-22 CHARTER SCHOOL UNAUDITED ACTUALS FINANCIAL REPORT -- ALTERNATIVE FORM: This report
E28: has been approved, and is hereby filed by the charter school pursuant to Education Code Section 42100(b).
E29: Signed: | L29: Date:
F30: Charter School Official
F31: (Original signature required)
E32: Printed Name: | F32: Roger Coy | L32: Title: | M32: Director
E34: To the County Superintendent of Schools:
A35: ( | B35: X | C35: ) | E35: 2021-22 CHARTER SCHOOL UNAUDITED ACTUALS FINANCIAL REPORT -- ALTERNATIVE FORM: This report
E36: is hereby filed with the County Superintendent pursuant to Education Code Section 42100(a).
E37: Signed: | L37: Date:
F38: Authorized Representative of Charter Approving Entity
F39: (Original signature required)
E40: Printed Name: | L40: Title:
E42: To the Superintendent of Public Instruction:
A43: ( | B43: X | C43: ) | E43: 2021-22 CHARTER SCHOOL UNAUDITED ACTUALS FINANCIAL REPORT -- ALTERNATIVE FORM: This report has been
E44: verified for mathematical accuracy by the County Superintendent of Schools pursuant to Education Code Section 42100(a).
E45: Signed: | L45: Date:
F46: County Superintendent/Designee
F47: (Original signature required)
X54: Version | Y54: 2004.1

Sheet Alternative Form
A1: c1 | B1: c2 | C1: c3 | D1: 4 | E1: objcode | F1: unrestr | G1: restr | H1: ttl
A2: CHARTER SCHOOL UNAUDITED ACTUALS
A3: FINANCIAL REPORT -- ALTERNATIVE FORM
A4: July 1, 2021 to June 30, 2022
A6: Charter School Name: | E6: =Certification!K7 -> Three Rivers Charter School
A7: CDS #: | E7: =Certification!K8 -> 23655650123737
A8: Charter Approving Entity: | E8: =Certification!K9 -> Fort Bragg Unified School District
A9: County: | E9: =Certification!K10 -> Mendocino
A10: Charter #: | E10: =Certification!K11 -> 1275
B11: This charter school uses the following basis of accounting:
B12: (Please enter an "X" in the applicable box below; check only one box)
B13: X | C13: Accrual Basis (Applicable Capital Assets/Interest on Long-Term Debt/Long-Term Liabilities/Net Position objects are 6900, 6910, 7438,
D14: 9400-9489, 9660-9669, 9796, and 9797)
C15: Modified Accrual Basis (Applicable Capital Outlay/Debt Service/Fund Balance objects are 6100-6170, 6200-6500, 6600, 7438, 7439,
D16: and 9711-9789)
D18: Description | E18: Object Code | F18: Unrestricted | G18: Restricted | H18: Total
A19: A. | B19: REVENUES
B20: 1. | C20: LCFF Sources
D21: State Aid - Current Year | E21: 8011 | F21: 368867 | H21: =SUM(F21) -> 368867
D22: Education Protection Account State Aid - Current Year | E22: 8012 | F22: 168780 | H22: 168780
D23: State Aid - Prior Years | E23: 8019 | F23: 0 | H23: 0
D24: Transfers to Charter Schools in Lieu of Property Taxes | E24: 8096 | F24: 332692 | H24: =SUM(F24) -> 332692
D25: Other LCFF Transfers | E25: 8091, 8097 | F25: 0 | G25: 0 | H25: =SUM(F25:G25) -> 0
D26: Total, LCFF Sources | F26: =SUM(F21:F25) -> 870339 | G26: =SUM(G25) -> 0 | H26: =SUM(F26:G26) -> 870339
B28: 2. | C28: Federal Revenues (see NOTE in Section L)
D29: No Child Left Behind/Every Student Succeeds Act | E29: 8290 | G29: 45730.26 | H29: =SUM(G29) -> 45730.26
D30: Special Education - Federal | E30: 8181, 8182 | G30: 0 | H30: =SUM(G30) -> 0
D31: Child Nutrition - Federal | E31: 8220 | G31: 0 | H31: =SUM(G31) -> 0
D32: Donated Food Commodities | E32: 8221 | G32: 0 | H32: =SUM(G32) -> 0
D33: Other Federal Revenues | E33: 8110, 8260-8299 | F33: 0 | G33: 25083.24 | H33: =SUM(F33:G33) -> 25083.24
D34: Total, Federal Revenues | F34: =SUM(F33) -> 0 | G34: =SUM(G29:G33) -> 70813.5 | H34: =SUM(F34:G34) -> 70813.5
B36: 3. | C36: Other State Revenues
D37: Charter Schools Categorical Block Grant | E37: 8480 | H37: =SUM(F37) -> 0
D38: Special Education - State | E38: StateRevSE | G38: 0 | H38: =SUM(G38) -> 0
D39: All Other State Revenues | E39: StateRevAO | F39: 20460.65 | G39: 108587.95 | H39: =SUM(F39:G39) -> 129048.6
D40: Total, Other State Revenues | F40: =SUM(F37,F39) -> 20460.65 | G40: =SUM(G38,G39) -> 108587.95 | H40: =SUM(F40:G40) -> 129048.6
B42: 4. | C42: Other Local Revenues
D43: All Other Local Revenues | E43: LocalRevAO | F43: 29248.48 | G43: 0 | H43: =SUM(F43:G43) -> 29248.48
D44: Total, Local Revenues | F44: =SUM(F43) -> 29248.48 | G44: =SUM(G43) -> 0 | H44: =SUM(F44:G44) -> 29248.48
B46: 5. | C46: TOTAL REVENUES | F46: =SUM(F26,F34,F40,F44) -> 920048.13 | G46: =SUM(G26,G34,G40,G44) -> 179401.45 | H46: =SUM(F46:G46) -> 1099449.58
A48: B. | B48: EXPENDITURES (see NOTE in Section L)
B49: 1. | C49: Certificated Salaries
D50: Certificated Teachers' Salaries | E50: 1100 | F50: 174278.91 | G50: 31415.65 | H50: =SUM(F50:G50) -> 205694.56
D51: Certificated Pupil Support Salaries | E51: 1200 | F51: 0 | G51: 0 | H51: =SUM(F51:G51) -> 0
D52: Certificated Supervisors' and Administrators' Salaries | E52: 1300 | F52: 67499.91 | G52: 100 | H52: =SUM(F52:G52) -> 67599.91
D53: Other Certificated Salaries | E53: 1900 | F53: 0 | G53: 0 | H53: =SUM(F53:G53) -> 0
D54: Total, Certificated Salaries | F54: =SUM(F50:F53) -> 241778.82 | G54: =SUM(G50:G53) -> 31515.65 | H54: =SUM(F54:G54) -> 273294.47
B56: 2. | C56: Noncertificated Salaries
D57: Noncertificated Instructional Salaries | E57: 2100 | F57: 135532.89 | G57: 5183.88 | H57: =SUM(F57:G57) -> 140716.77
D58: Noncertificated Support Salaries | E58: 2200 | F58: 0 | G58: 36305.91 | H58: 36305.91
D60: Noncertificated Supervisors' and Administrators' Salaries | E60: 2300 | F60: 0 | G60: 0 | H60: =SUM(F60:G60) -> 0
D61: Clerical, Technical and Office Salaries | E61: 2400 | F61: 30088.15 | G61: 0 | H61: 30088.15
D62: Other Noncertificated Salaries | E62: 2900 | F62: 0 | G62: 0 | H62: 0
D63: Total, Noncertificated Salaries | F63: =SUM(F57:F62) -> 165621.04 | G63: =SUM(G57:G62) -> 41489.79 | H63: 207110.83
D64: Description | E64: Object Code | F64: Unrestricted | G64: Restricted | H64: Total
B65: 3. | C65: Employee Benefits
D66: STRS | E66: 3101-3102 | F66: 42891.44 | G66: 182.91 | H66: =SUM(F66:G66) -> 43074.35
D67: PERS | E67: 3201-3202 | F67: 0 | G67: 0 | H67: =SUM(F67:G67) -> 0
D68: OASDI / Medicare / Alternative | E68: 3301-3302 | F68: 14285.32 | G68: 5204.36 | H68: 19489.68
D69: Health and Welfare Benefits | E69: 3401-3402 | F69: 50658.89 | G69: -47.49 | H69: 50611.4
D70: Unemployment Insurance | E70: 3501-3502 | F70: 2652.24 | G70: 224.21 | H70: 2876.45
D71: Workers' Compensation Insurance | E71: 3601-3602 | F71: 9405.36 | G71: 0 | H71: 9405.36
D72: OPEB, Allocated | E72: 3701-3702 | F72: 0 | G72: 0 | H72: 0
D73: OPEB, Active Employees | E73: 3751-3752 | F73: 0 | G73: 0 | H73: =SUM(F73:G73) -> 0
D74: Other Employee Benefits | E74: 3901-3902 | F74: 0 | G74: 0 | H74: 0
D75: Total, Employee Benefits | F75: =SUM(F66:F74) -> 119893.25 | G75: =SUM(G66:G74) -> 5563.99 | H75: =SUM(F75:G75) -> 125457.24
B77: 4. | C77: Books and Supplies
D78: Approved Textbooks and Core Curricula Materials | E78: 4100 | F78: 0 | G78: 11220.9 | H78: =SUM(F78:G78) -> 11220.9
D79: Books and Other Reference Materials | E79: 4200 | F79: 0 | G79: 99.87 | H79: 99.87
D80: Materials and Supplies | E80: 4300 | F80: 5928.48 | G80: 16695.19 | H80: 22623.67
D81: Noncapitalized Equipment | E81: 4400 | F81: 3343.28 | G81: 5514.89 | H81: 8858.17
D82: Food | E82: 4700 | F82: 1357.49 | G82: 4001.61 | H82: 5359.1
D83: Total, Books and Supplies | F83: =SUM(F78:F82) -> 10629.25 | G83: =SUM(G78:G82) -> 37532.46 | H83: 48161.71
B85: 5. | C85: Services and Other Operating Expenditures
D86: Subagreements for Services | E86: 5100 | F86: 0 | G86: 0 | H86: =SUM(F86:G86) -> 0
D87: Travel and Conferences | E87: 5200 | F87: -70 | G87: 9111.63 | H87: =SUM(F87:G87) -> 9041.63
D88: Dues and Memberships | E88: 5300 | F88: 7971.19 | G88: 455.8 | H88: =SUM(F88:G88) -> 8426.99
D89: Insurance | E89: 5400 | F89: 23422.64 | G89: 0 | H89: 23422.64
D90: Operations and Housekeeping Services | E90: 5500 | F90: 1441.28 | G90: 20852.84 | H90: 22294.12
D91: Rentals, Leases, Repairs, and Noncap. Improvements | E91: 5600 | F91: 18615.79 | G91: 35780.32 | H91: 54396.11
D92: Transfers of Direct Costs | E92: 5700-5799 | F92: 0 | G92: 0 | H92: 0
D93: Professional/Consulting Services and Operating Expend. | E93: 5800 | F93: 86319.86 | G93: 6090.25 | H93: 92410.11
D94: Communications | E94: 5900 | F94: 5492.49 | G94: 4.15 | H94: 5496.64
D95: Total, Services and Other Operating Expenditures | F95: =SUM(F86:F94) -> 143193.25 | G95: =SUM(G86:G94) -> 72294.99 | H95: 215488.24
B97: 6. | C97: Capital Outlay
D98: (Objects 6100-6170, 6200-6500 modified accrual basis only)
D99: Land and Land Improvements | E99: 6100-6170 | H99: =SUM(F99:G99) -> 0
D100: Buildings and Improvements of Buildings | E100: 6200 | H100: =SUM(F100:G100) -> 0
D101: Books and Media for New School Libraries or Major
D102: Expansion of School Libraries | E102: 6300 | H102: =SUM(F102:G102) -> 0
D103: Equipment | E103: 6400 | H103: 0
D104: Equipment Replacement | E104: 6500 | H104: 0
D105: Lease Assets | E105: 6600 | H105: 0
D106: Depreciation Expense (accrual basis only) | E106: 6900 | H106: 0
D107: Amortization Expense - Lease Assets | E107: 6910 | H107: =SUM(F107:G107) -> 0
D108: Total, Capital Outlay | F108: =SUM(F99,F100,F102,F103,F104,F105,F106,F107) -> 0 | G108: =SUM(G99,G100,G102,G103,G104,G105,G106,G107) -> 0 | H108: 0
B110: 7. | C110: Other Outgo
D111: Tuition to Other Schools | E111: 7110-7143 | H111: =SUM(F111:G111) -> 0
D112: Transfers of Pass-Through Revenues to Other LEAs | E112: 7211-7213 | H112: 0
D113: Transfers of Apportionments to Other LEAs - Spec. Ed. | E113: 7221-7223SE | G113: 109630.32 | H113: 109630.32
D114: Transfers of Apportionments to Other LEAs - All Other | E114: 7221-7223AO | H114: 0
D115: All Other Transfers | E115: 7281-7299 | H115: 0
D116: Transfers of Indirect Costs | E116: 7300-7399 | H116: 0
D117: Debt Service:
D118: Interest | E118: 7438 | H118: =SUM(F118:G118) -> 0
D119: Principal (for modified accrual basis only) | E119: 7439 | H119: =SUM(F119:G119) -> 0
D120: Total Debt Service | F120: =SUM(F118:F119) -> 0 | G120: =SUM(G118:G119) -> 0 | H120: =SUM(F120:G120) -> 0
D121: Total, Other Outgo | F121: =SUM(F111,F112,F113,F114,F115,F116,F118,F119) -> 0 | G121: =SUM(G111,G112,G113,G114,G115,G116,G118,G119) -> 109630.32 | H121: =SUM(F121:G121) -> 109630.32
B123: 8. | C123: TOTAL EXPENDITURES | F123: =SUM(F54,F63,F75,F83,F95,F108,F121) -> 681115.61 | G123: =SUM(G54,G63,G75,G83,G95,G108,G121) -> 298027.2 | H123: =SUM(F123:G123) -> 979142.81
D124: Description | E124: Object Code | F124: Unrestricted | G124: Restricted | H124: Total
A125: C. | B125: EXCESS (DEFICIENCY) OF REVENUES OVER EXPENDITURES
B126: BEFORE OTHER FINANCING SOURCES AND USES (A5-B8) | F126: =SUM(F46-F123) -> 238932.52 | G126: =SUM(G46-G123) -> -118625.75 | H126: =SUM(F126:G126) -> 120306.77
A128: D. | B128: OTHER FINANCING SOURCES / USES
B129: 1. | C129: Other Sources | E129: 8930-8979 | H129: =SUM(F129:G129) -> 0
B130: 2. | C130: Less: Other Uses | E130: 7630-7699 | H130: =SUM(F130:G130) -> 0
B131: 3. | C131: Contributions Between Unrestricted and Restricted Accounts | H131: =IF(H132=0,"","(must be zero)") -> 
C132: (must net to zero) | E132: 8980-8999 | F132: -118625.75 | G132: 118625.75 | H132: =SUM(F132:G132) -> 0
B134: 4. | C134: TOTAL OTHER FINANCING SOURCES / USES | F134: =SUM(+F129-F130+F132) -> -118625.75 | G134: =SUM(+G129-G130+G132) -> 118625.75 | H134: =SUM(F134:G134) -> 0
A136: E. | B136: NET INCREASE (DECREASE) IN FUND BALANCE /NET POSITION (C+D4) | F136: =SUM(F126,F134) -> 120306.77 | G136: =SUM(G126,G134) -> 0 | H136: =SUM(H126,H134) -> 120306.77
A138: F. | B138: FUND BALANCE / NET POSITION
B139: 1. | C139: Beginning Fund Balance/Net Position
C140: a. | D140: As of July 1 | E140: 9791 | F140: 1252508.98 | G140: 0 | H140: =SUM(F140:G140) -> 1252508.98
C141: b. | D141: Adjustments/Restatements | E141: 9793, 9795 | H141: =SUM(F141:G141) -> 0
C142: c. | D142: Adjusted Beginning Fund Balance /Net Position | F142: =SUM(F140,F141) -> 1252508.98 | G142: =SUM(G140,G141) -> 0 | H142: =SUM(F142:G142) -> 1252508.98
B143: 2. | C143: Ending Fund Balance /Net Position, June 30 (E+F1c) | F143: =SUM(F136,F142) -> 1372815.75 | G143: =SUM(G136,G142) -> 0 | H143: =SUM(F143:G143) -> 1372815.75
C144: Components of Ending Fund Balance (Modified Accrual Basis only)
C145: a. | D145: Nonspendable
D146: 1. Revolving Cash (equals Object 9130) | E146: 9711 | H146: =SUM(F146:G146) -> 0
D147: 2. Stores (equals Object 9320) | E147: 9712 | H147: 0
D148: 3. Prepaid Expenditures (equals Object 9330) | E148: 9713 | H148: 0
D149: 4. All Others | E149: 9719 | H149: 0
C150: b. | D150: Restricted | E150: 9740 | H150: 0
C151: c. Committed | D151: Committed
D152: 1. Stabilization Arrangements | E152: 9750 | H152: 0
D153: 2. Other Commitments | E153: 9760 | H153: 0
C154: d. | D154: Assigned | E154: 9780 | H154: 0
C155: e. | D155: Unassigned/Unappropriated
D156: 1. Reserve for Economic Uncertainties | E156: 9789 | H156: 0
D157: 2. Unassigned/Unappropriated Amount | E157: 9790M | H157: 0
B159: 3. | C159: Components of Ending Net Position (Accrual Basis only) | F159: =IF(AND(SUM(F177)>0,LEN(TRIM(F2F1Unrestricted)) = 0),"Enter amount for F.3.a","" ) ->  | G159: =IF(AND(SUM(G177)>0,LEN(TRIM(F2F1Restricted)) = 0),"Enter amount for F.3.a","" ) -> 
D160: a. Net Investment in Capital Assets | E160: 9796 | F160: 0 | H160: 0
D161: b. Restricted Net Position | E161: 9797 | H161: 0
G162: =IF(F2F3RestrictedSum=0,"",IF(F2F3RestrictedSum<0,"","(must be zero or negative)")) -> 
D163: c. Unrestricted Net Position | E163: 9790A | F163: =F2Unrestricted-F2F1Unrestricted -> 1372815.75 | G163: =F2Restricted - SUM(F2FRestricted) -> 0 | H163: 1372815.75
D164: Description | E164: Object Code | F164: Unrestricted | G164: Restricted | H164: Total
A165: G. | B165: ASSETS
B166: 1. | C166: Cash
D167: In County Treasury | E167: 9110 | F167: 1307049.72 | H167: =SUM(F167:G167) -> 1307049.72
D168: Fair Value Adjustment to Cash in County Treasury | E168: 9111 | H168: =SUM(F168:G168) -> 0
D169: In Banks | E169: 9120 | F169: 283785.61 | H169: 283785.61
D170: In Revolving Fund | E170: 9130 | H170: 0
D171: With Fiscal Agent/Trustee | E171: 9135 | H171: 0
D172: Collections Awaiting Deposit | E172: 9140 | H172: 0
B173: 2. | C173: Investments | E173: 9150 | H173: 0
B174: 3. | C174: Accounts Receivable | E174: 9200 | F174: 283.69 | H174: 283.69
B175: 4. | C175: Due from Grantor Governments | E175: 9290 | F175: 29858.65 | H175: 29858.65
B176: 5. | C176: Stores | E176: 9320 | H176: 0
B177: 6. | C177: Prepaid Expenditures (Expenses) | E177: 9330 | F177: 8436.32 | H177: 8436.32
B178: 7. | C178: Other Current Assets | E178: 9340 | H178: 0
B179: 8. | C179: Lease Receivable | E179: 9380 | H179: 0
B180: 9. | C180: Capital Assets (accrual basis only) | E180: 9400-9489 | F180: 5400 | H180: 5400
B182: 10. | C182: TOTAL ASSETS | F182: =SUM(F167:F181) -> 1634813.99 | G182: =SUM(G167:G180) -> 0 | H182: =SUM(F182:G182) -> 1634813.99
A184: H. | B184: DEFERRED OUTFLOWS OF RESOURCES
B185: 1. | C185: Deferred Outflows of Resources | E185: 9490 | H185: =SUM(F185:G185) -> 0
B187: 2. | C187: TOTAL DEFERRED OUTFLOWS | F187: =SUM(F185) -> 0 | G187: =SUM(G185) -> 0 | H187: =SUM(F187:G187) -> 0
A189: I. | B189: LIABILITIES
B190: 1. | C190: Accounts Payable | E190: 9500 | F190: 14467.53 | H190: =SUM(F190:G190) -> 14467.53
B191: 2. | C191: Due to Grantor Governments | E191: 9590 | F191: 172849.62 | H191: =SUM(F191:G191) -> 172849.62
B192: 3. | C192: Current Loans | E192: 9640 | H192: =SUM(F192:G192) -> 0
B193: 4. | C193: Unearned Revenue | E193: 9650 | F193: 74680.82 | H193: =SUM(F193:G193) -> 74680.82
B194: 5. | C194: Long-Term Liabilities (accrual basis only) | E194: 9660-9669 | H194: =SUM(F194:G194) -> 0
B196: 6. | C196: TOTAL LIABILITIES | F196: =SUM(F190:F194) -> 261997.97 | G196: =SUM(G190:G194) -> 0 | H196: =SUM(F196:G196) -> 261997.97
A198: J. | B198: DEFERRED INFLOWS OF RESOURCES
B199: 1. | C199: Deferred Inflows of Resources | E199: 9690 | H199: =SUM(F199:G199) -> 0
B201: 2. | C201: TOTAL DEFERRED INFLOWS | F201: =SUM(F199) -> 0 | G201: =SUM(G199) -> 0 | H201: =SUM(F201:G201) -> 0
K202: =ROUND(SUM(F205-F143),0) -> 0 | L202: =ROUND(SUM(G205-G143),0) -> 0
A203: K. | B203: FUND BALANCE /NET POSITION | K203: =IF(ABS(K202)<10.01,0,K202) -> 0 | L203: =IF(ABS(L202)<10.01,0,L202) -> 0
C204: Ending Fund Balance /Net Position, June 30 (G10 + H2) - (I6 + J2) | F204: =IF(K203=0,"","(must = Line F2)") ->  | G204: =IF(L203=0,"","(must = Line F2)") -> 
C205: (must agree with Line F2) | F205: =SUM((F182+F187) - (F196+F201)) -> 1372816.02 | G205: =SUM((G182+G187) - (G196+G201)) -> 0 | H205: =SUM((H182+H187) - (H196+H201)) -> 1372816.02
A207: L. FEDERAL EVERY STUDENT SUCCEEDS ACT (ESSA) MAINTENANCE OF EFFORT REQUIREMENT
A209: NOTE: IF YOUR CHARTER SCHOOL RECEIVED FEDERAL FUNDING, AS REPORTED IN SECTION A2, THE FOLLOWING
D210: ADDITIONAL INFORMATION MUST BE PROVIDED IN ORDER FOR THE CDE TO CALCULATE COMPLIANCE WITH
D211: THE FEDERAL EVERY STUDENT SUCCEEDS ACT (ESSA) MAINTENANCE OF EFFORT REQUIREMENT:
B213: 1. | C213: Federal Revenue Used for Capital Outlay and Debt Service
C214: Included in the Capital Outlay and Debt Service expenditures reported in sections B6 and B7 are
C215: the following amounts paid out of federal funds:
D217: Federal Program Name (If no amounts, indicate "NONE") | F217: Capital Outlay | G217: Debt Service | H217: Total
C219: a. | D219: None | E219: $ | F219: 0 | G219: 0 | H219: =SUM(F219,G219) -> 0
C220: b. | H220: =SUM(F220,G220) -> 0
C221: c. | H221: =SUM(F221,G221) -> 0
C222: d. | H222: 0
C223: e. | H223: 0
C224: f. | H224: 0
C225: g. | H225: 0
C226: h. | H226: 0
C227: i. | H227: 0
C228: j. | H228: =SUM(F228,G228) -> 0
D230: TOTAL FEDERAL REVENUES USED FOR CAPITAL OUTLAY AND DEBT SERVICE | F230: =SUM(F219:F228) -> 0 | G230: =SUM(G219:G228) -> 0 | H230: =SUM(F230:G230) -> 0
B233: 2. | C233: Community Services Expenditures
C234: Provide the amount of State and Local funds reported in Section B that were expended for Community Services Activities:
... 36 more rows

Sheet Data (hidden)
A1: 12345678912345 | B1: 20000 | C1: 30000
A2: 12345678912345 | B2: 256445 | C2: 300
A3: 12345678912345 | B3: 25488 | C3: 1
A4: 12345678912345 | B4: 2500 | C4: 33665

Sheet MACROS (hidden)
B4: Macros must be enabled to use this workbook.
B5: Please close the file and re-open it with macros enabled.
B7: Instructions:
B8: Go to your File tab – Options – Trust Center – Trust Center Settings – Macro Settings – Enable all macros
